{"text_format":"1","workbook":"xlsx","n_sheets":18,"sheets":["1","2","3","3a","4","5","6","7","8","9","10","11","12","13","14","15","16","17"],"not_rendered":{"charts":0,"images":0,"macros":0,"external_links":0,"defined_names":0,"comments":0,"pivot_tables":0},"unopened":[],"bounds":{"document_bytes":16777216,"sheet_cells":100000,"rows_first":2000,"rows_last":500,"rows_between":2000,"halvings":0,"cell_chars":16384,"cell_head_chars":4096},"cells_cut":0,"cells_raw":0,"read":"whole","date_system":"1900"}

{"sheet":"1","index":0,"n_rows":101,"n_cols":7,"rows_kept":101,"cut":false,"hidden":false,"merged":[[3,4,3,6],[4,5,4,6],[4,4,5,4],[98,0,98,3],[0,1,0,3],[3,0,4,0],[3,1,4,1],[3,2,4,2],[3,3,4,3]]}
[null,"Dochody budżetu gminy na 2008 r."]
[]
[null,null,null,null,null,"w złotych"]
["Dział","Rozdział*","§","Źródło dochodów","Planowane dochody na 2008 r"]
[null,null,null,null,"Ogółem","w tym :"]
[null,null,null,null,null,"bieżące","majątkowe "]
[1,2,3,4,5,6,7]
["010",null,null,"Rolnictwo i łowiectwo",{"$f":"E9+E11","v":52850},{"$f":"F9+F11","v":52850},{"$f":"G9+G11","v":0}]
[null,"01010",null,"Infrastruktura wodociągowa i sanitacyjna wsi",{"$f":"SUM(E10)","v":50000},{"$f":"SUM(F10)","v":50000},{"$f":"SUM(G10)","v":0}]
[null,null,6290,"Środki na dofinansowanie własnych inwestycji gmin( związków gmin), powiatów(związków powiatów), samorządów województw, pozyskane z innych źródeł",50000,50000]
[null,"01095",null,"Pozostała działalność",{"$f":"SUM(E12)","v":2850},{"$f":"SUM(F12)","v":2850},{"$f":"SUM(G12)","v":0}]
[null,null,"0750","Dochody z najmu i dzierżawy składników majątkowych Skarbu Państwa, jednostek samorządu terytorialnego lub innych jednostek zaliczanych do sektora finansów publicznych oraz umów o podobnym charakterze",2850,2850,0]
["600",null,null,"Transport i łączność",{"$f":"E14","v":15192},{"$f":"F14","v":15192},{"$f":"G14","v":0}]
[null,"60014",null,"Drogi publiczne powiatowe",{"$f":"SUM(E15:E16)","v":15192},{"$f":"SUM(F15:F16)","v":15192},{"$f":"SUM(G15:G16)","v":0}]
[null,null,2320,"Dotacje celowe otrzymane z powiatu na zadania bieżące realizowane na podstawie porozumień(umów) między jst",15192,15192]
[null,null,6300,"Wpływy z tytułu pomocy finansowej udzielanej między jednostkami samorządu terytorialnego na dofinansowanie własnych zadań inwestycyjnych i zakupów inwestycyjnych"]
["700",null,null,"Gospodarka mieszkaniowa ",{"$f":"E18","v":198448},{"$f":"F18","v":100448},{"$f":"G18","v":98000}]
[null,"70005",null,"Gospodarka gruntami i nieruchomościami",{"$f":"SUM(E19:E24)","v":198448},{"$f":"SUM(F19:F24)","v":100448},{"$f":"SUM(G19:G24)","v":98000}]
[null,null,"0470","Wpływy z opłat za zarząd, użytkowanie i użytkowanie wieczyste nieruchomości",8156,8156]
[null,null,"0690","Wpływy z różnych opłat",0]
[null,null,"0750","Dochody z najmu i dzierżawy składników majątkowych Skarbu Państwa, jednostek samorządu terytorialnego lub innych jednostek zaliczanych do sektora finansów publicznych oraz umów o podobnym charakterze",83792,83792]
[null,null,"0770","Wpłaty z tytułu odpłatnego nabycia prawa własności oraz prawa użytkowania wieczystego nieruchomości ",98000,null,98000]
[null,null,"0830","Wpływy z usług",8000,8000]
[null,null,"0920","Pozostałe odsetki",500,500]
["750",null,null,"Administracja publiczna",{"$f":"E26+E29","v":76111},{"$f":"F26+F29","v":76111},{"$f":"G26+G29","v":0}]
[null,"75011",null,"Urzędy wojewódzkie",{"$f":"SUM(E27:E28)","v":70611},{"$f":"SUM(F27:F28)","v":70611},{"$f":"SUM(G27:G28)","v":0}]
[null,null,"2010","Dotacje celowe otrzymane z budżetu państwa na realizację zadań bieżących z zakresu administracji rządowej oraz innych zadań zleconych gminie(związkom gmin) ustawami",68611,68611]
[null,null,"2360","Dochody jednostek samorządu terytorialnego związane z realizacją zadań z zakresu administracji rządowej oraz innych zadań zleconych ustawami",2000,2000]
[null,"75023",null,"Urzędy gmin(miast i miast na prawach pow.)",{"$f":"SUM(E30:E32)","v":5500},{"$f":"SUM(F30:F32)","v":5500},{"$f":"SUM(G30:G32)","v":0}]
[null,null,"0690","Wpływy z różnych opłat",2500,2500]
[null,null,"0830","Wpływy z usług",2000,2000]
[null,null,"0970","Wpływy z różnych dochodów",1000,1000]
["751",null,null,"Urzędy naczelnych organów władzypaństwowej, kontroli i ochrony prawa oraz sądownictwa",{"$f":"E34","v":1037},{"$f":"F34","v":1037},{"$f":"G34","v":0}]
[null,"75101",null,"Urzędy naczelnych organów władzypaństwowej, kontroli i ochrony prawa ",{"$f":"SUM(E35)","v":1037},{"$f":"SUM(F35)","v":1037},{"$f":"SUM(G35)","v":0}]
[null,null,"2010","Dotacje celowe otrzymane z budżetu państwa na realizację zadań bieżących z zakresu administracji rządowej oraz innych zadań zleconych gminie(związkom gmin) ustawami",1037,1037]
["754",null,null,"Bezpieczeństwo publiczne i ochrona przeciwpożarowa",{"$f":"E37","v":600},{"$f":"F37","v":600},{"$f":"G37","v":0}]
[null,"75414",null,"Obrona cywilna",{"$f":"SUM(E38)","v":600},{"$f":"SUM(F38)","v":600},{"$f":"SUM(G38)","v":0}]
[null,null,"2010","Dotacje celowe otrzymane z budżetu państwa na realizację zadań bieżących z zakresu administracji rządowej oraz innych zadań zleconych gminie(związkom gmin) ustawami",600,600]
["756",null,null,"Dochody od osób prawnych, od osób fizycznych i od in nych jrednostek nieposiadających osobowości prawnej oraz wydatki związane z ich poborem",{"$f":"E40+E42+E47+E56+E63","v":2718381},{"$f":"F40+F42+F47+F56+F63","v":2718381},{"$f":"G40+G42+G47+G56+G63","v":0}]
[null,"75601",null,"Wpływy z podatku dochodowego od osób fizycznych",{"$f":"SUM(E41)","v":1500},{"$f":"SUM(F41)","v":1500},{"$f":"SUM(G41)","v":0}]
[null,null,"0350","Podatek od działalnosci gospodarczej osób fizycznych opłacany w formie karty podatkowej",1500,1500]
[null,"75615",null,"Wpływy z podatku rolnego, podatku leśnego,podatku od czynności cywilnoprawnych, podatku od spadków i darowizn oraz podatków i opłat lokalnych od osób prawnych i innych jenostek organizacyjnych",{"$f":"SUM(E43:E46)","v":587942},{"$f":"SUM(F43:F46)","v":587942},{"$f":"SUM(G43:G46)","v":0}]
[null,null,"0310","Podatek od nieruchomości",577800,577800]
[null,null,"0320","Podatek rolny",759,759]
[null,null,"0330","Podatek leśny",8883,8883]
[null,null,"0910","Odsetki od nieterminowych wpłat z tytułu podatków i opłat",500,500]
[null,"75616",null,"Wpływy z podatku rolnego, podatku leśnego, podatku od spadków i darowizn, podatku od czynności cywilnoprawnych oraz podatków i opłat lokalnych od osób fizycznych",{"$f":"SUM(E48:E55)","v":917738},{"$f":"SUM(F48:F55)","v":917738},{"$f":"SUM(G48:G55)","v":0}]
[null,null,"0310","Podatek od nieruchomości",154500,154500]
[null,null,"0320","Podatek rolny",554938,554938]
[null,null,"0330","Podatek leśny",71500,71500]
[null,null,"0340","Podatek od środków transportowych",61800,61800]
[null,null,"0360","Podatek od spadków i darowizn",6000,6000]
[null,null,"0430","Wpływy z opłaty targowej",5500,5500]
[null,null,"0500","Podatek od czynności cywilnoprawnych",53500,53500]
[null,null,"0910","Odsetki od nieterminowych wpłat z tytułu podatków i opłat",10000,10000]
[null,"75618",null,"Wpływy z innych opłat stanowiących dochody jednostek samorządu terytorialnego na podstawie ustaw",{"$f":"SUM(E57:E62)","v":63200},{"$f":"SUM(F57:F62)","v":63200},{"$f":"SUM(G57:G62)","v":0}]
[null,null,"0400","Wpływy z opłaty produktowej",500,500]
[null,null,"0410","Wpływy z opłaty skarbowej",27000,27000]
[null,null,"0460","Wpływy z opłaty eksploatacyjnej",4000,4000]
[null,null,"0480","Wpływy z opłat zawydawanie  zezwoleń na sprzedaż alkoholu",28700,28700]
[null,null,"0490","Wpływy z innych lokalnych opłat pobieranych przez jednostki samorządu terytorialnego na podstawie odrębnych ustaw",3000,3000]
[null,null,"0910","Odsetki od nieterminowych wpłat z tytułu podatków i opłat"]
[null,"75621",null,"Udziały gmin w podatkach stanowiących dochód budżetu państwa",{"$f":"SUM(E64:E65)","v":1148001},{"$f":"SUM(F64:F65)","v":1148001},{"$f":"SUM(G64:G65)","v":0}]
[null,null,"0010","Podatek dochodowy od osób fizycznych",1141501,1141501]
[null,null,"0020","Podatek dochodowy od osób prawnych",6500,6500]
["758",null,null,"Różne rozliczenia",{"$f":"E67+E69+E71","v":6583100},{"$f":"F67+F69+F71","v":6583100},{"$f":"G67+G69+G71","v":0}]
[null,"75801",null,"Część oświatowa subwencji ogólnej dla jednostek samorządu terytorialnego",{"$f":"SUM(E68)","v":3776348},{"$f":"SUM(F68)","v":3776348},{"$f":"SUM(G68)","v":0}]
[null,null,"2920","Subwencje ogólne z budźetu państwa",3776348,3776348]
[null,"75807",null,"Część wyrównawcza subwencji ogólnej dla gmin",{"$f":"SUM(E70)","v":2796752},{"$f":"SUM(F70)","v":2796752},{"$f":"SUM(G70)","v":0}]
[null,null,"2920","Subwencje ogólne z budżetu państwa",2796752,2796752]
[null,"75814",null,"Różne rozliczenia finansowe",{"$f":"SUM(E72)","v":10000},{"$f":"SUM(F72)","v":10000},{"$f":"SUM(G72)","v":0}]
[null,null,"0920","Pozostałe odsetki",10000,10000]
["801",null,null,"Oświata i wychowanie ",{"$f":"E74+E76+E78","v":41081},{"$f":"F74+F76+F78","v":41081},{"$f":"G74+G76+G78","v":0}]
[null,"80101",null,"Szkoły podstawowe",{"$f":"SUM(E75)","v":1000},{"$f":"SUM(F75)","v":1000},{"$f":"SUM(G75)","v":0}]
[null,null,"0920","Pozostałe odsetki",1000,1000]
[null,"80104",null,"Przedszkola",{"$f":"SUM(E77)","v":32000},{"$f":"SUM(F77)","v":32000},{"$f":"SUM(G77)","v":0}]
[null,null,"0830","Wpływy z usług",32000,32000]
[null,"80195",null,"Pozotała działalność",{"$f":"SUM(E79)","v":8081},{"$f":"SUM(F79)","v":8081},{"$f":"SUM(G79)","v":0}]
[null,null,"2030","Dotacje celowe otrzymane z budżetu państwa na realizację własnych  zadań bieżących gmin (związków gmin)",8081,8081]
["852",null,null,"Pomoc społeczna",{"$f":"E81+E83+E85+E88+E92+E94","v":2095200},{"$f":"F81+F83+F85+F88+F92+F94","v":2095200},{"$f":"G81+G83+G85+G88+G92+G94","v":0}]
[null,"85212",null,"Świadczenia rodzinne, zaliczka alimentacyjn a oraz składki na ubezpieczenia emerytalne i rentowe z ubezpieczenia społecznego",{"$f":"SUM(E82)","v":1800000},{"$f":"SUM(F82)","v":1800000},{"$f":"SUM(G82)","v":0}]
[null,null,"2010","Dotacje celowe otrzymane z budżetu państwa na realizację zadań bieżących z zakresu administracji rządowej oraz innych zadań zleconych gminie(związkom gmin) ustawami",1800000,1800000]
[null,"85213",null,"Składki na ubezpieczenie zdrowotne opłacane za osoby pobierajace niektóre swiadczenia z pomocy społecznej oraz niektóre świadczenia rodzinne",{"$f":"SUM(E84)","v":7200},{"$f":"SUM(F84)","v":7200},{"$f":"SUM(G84)","v":0}]
[null,null,"2010","Dotacje celowe otrzymane z budżetu państwa na realizację zadań bieżących z zakresu administracji rządowej oraz innych zadań zleconych gminie(związkom gmin) ustawami",7200,7200]
[null,"85214",null,"Zasiłki i pomoc w naturze oraz składki na  ubezpieczenia emerytalne i rentowe",{"$f":"SUM(E86:E87)","v":145000},{"$f":"SUM(F86:F87)","v":145000},{"$f":"SUM(G86:G87)","v":0}]
[null,null,"2010","Dotacje celowe otrzymane z budżetu państwa na realizację zadań bieżących z zakresu administracji rządowej oraz innych zadań zleconych gminie(związkom gmin) ustawami",78000,78000]
[null,null,"2030","Dotacje celowe otrzymane z budżetu państwa na realizację własnych  zadań bieżących gmin (związków gmin)",67000,67000]
[null,"85219",null,"Ośrodki pomocy społecznej",{"$f":"SUM(E89:E91)","v":99700},{"$f":"SUM(F89:F91)","v":99700},{"$f":"SUM(G89:G91)","v":0}]
[null,null,"2030","Dotacje celowe otrzymane z budżetu państwa na realizację własnych  zadań bieżących gmin (związków gmin)",97200,97200]
[null,null,"0830","Wpływy z usług",1500,1500]
[null,null,"0920","Pozostale odsetki",1000,1000]
[null,"85228",null,"Usługi opiekuńcze i specjalistyczne usługi opiekuńcze",{"$f":"SUM(E93)","v":13300},{"$f":"SUM(F93)","v":13300},{"$f":"SUM(G93)","v":0}]
[null,null,"2010","Dotacje celowe otrzymane z budżetu państwa na realizację zadań bieżących z zakresu administracji rządowej oraz innych zadań zleconych gminie(związkom gmin) ustawami",13300,13300]
[null,"85295",null,"Pozostała działałność",{"$f":"SUM(E95)","v":30000},{"$f":"SUM(F95)","v":30000},{"$f":"SUM(G95)","v":0}]
[null,null,"2030","Dotacje celowe otrzymane z budżetu państwa na realizację własnych  zadań bieżących gmin (związków gmin)",30000,30000]
[]
[]
[]
["Dochody ogółem",null,null,null,{"$f":"E8+E13+E17+E25+E33+E36+E39+E66+E73+E80","v":11782000},{"$f":"F8+F13+F17+F25+F33+F36+F39+F66+F73+F80","v":11684000},{"$f":"G8+G13+G17+G25+G33+G36+G39+G66+G73+G80","v":98000}]
[]
["(* kol. 2 do wykorzystania fakultatywnego)"]

{"sheet":"2","index":1,"n_rows":324,"n_cols":12,"rows_kept":324,"cut":false,"hidden":false,"merged":[[321,0,321,3],[0,0,0,11],[12,4,14,4],[12,0,14,0],[12,3,14,3],[12,1,14,1],[12,5,12,11],[13,6,13,10],[13,5,14,5],[13,11,14,11],[12,2,14,2]]}
["Wydatki budżetu gminy na  2008 r."]
[]
[null,null,null,null,null,null,null,null,null,null,null,"w  złotych"]
[]
[]
[]
[]
[]
[]
[]
[]
[]
["Dział","Rozdział","§*","Nazwa","Plan\nna 2008 r.\n(6+12)","z tego:"]
[null,null,null,null,null,"Wydatki bieżące","w tym:",null,null,null,null,"Wydatki majątkowe"]
[null,null,null,null,null,null,"Wynagro-\ndzenia","Pochodne od \nwynagro-dzeń","Dotacje","Wydatki na obsługę długu","Wydatki\nz tytułu poręczeń\ni gwarancji"]
[1,2,3,4,5,6,7,8,9,10,11,12]
["010",null,null,"Rolnictwo i łowiectwo",{"$f":"E18+E20+E22","v":1597700},{"$f":"F18+F20+F22","v":27700},0,0,0,0,0,1570000]
[null,"01010",null,"Infrastruktura wodociągowa i sanitacyjna wsi",{"$f":"SUM(E19)","v":1570000},{"$f":"SUM(F19)","v":0},0,0,0,0,0,{"$f":"SUM(L19)","v":1570000}]
[null,null,"6050","Wydatki inwestycyjne jednostek budżetowych",1570000,null,null,null,null,null,null,1570000]
[null,"01030",null,"Izby rolnicze",{"$f":"SUM(E21)","v":12500},{"$f":"SUM(F21)","v":12500},0,0,0,0,0,0]
[null,null,"2850","Wpłaty gmin na rzecz izb rolniczych w wysokości 2% uzyskanych wpływów z podatku rolnego",12500,12500]
[null,"01095",null,"Pozostała działalność",{"$f":"SUM(E23:E24)","v":15200},{"$f":"SUM(F23:F24)","v":15200},0,0,0,0,0,0]
[null,null,"4210","Zakup materiałów wyposażenia",400,400]
[null,null,"4300","Zakup usług pozostałych",14800,14800]
["600",null,null,"Transport i łączność",{"$f":"E26+E29+E34","v":2121192},{"$f":"F26+F29+F34","v":171192},0,0,0,0,0,1950000]
[null,"60014",null,"Drogi publiczne powiatowe",{"$f":"SUM(E27:E28)","v":1965192},{"$f":"SUM(F27:F28)","v":15192},0,0,0,0,0,1950000]
[null,null,"4300","Zakup usług pozostałych",15192,15192]
[null,null,"6050","Wydatki inwestycyjne jednostek budżetowych",1950000,null,null,null,null,null,null,1950000]
[null,"60016",null,"Drogi publiczne gminne",{"$f":"SUM(E30:E33)","v":131000},{"$f":"SUM(F30:F33)","v":131000},0,0,0,0,0,{"$f":"SUM(L30:L33)","v":0}]
[null,null,"4210","Zakup materiałów wyposażenia",10000,10000]
[null,null,"4270","Zakup usług remontowych",100000,100000]
[null,null,"4300","Zakup usług pozostałych",21000,21000]
[null,null,"6050","Wydatki inwestycyjne jednostek budżetowych",0]
[null,"60095",null,"Pozostała działalność",{"$f":"SUM(E35)","v":25000},{"$f":"SUM(F35)","v":25000},0,0,0,0,0,0]
[null,null,"4520","Opłaty na rzecz budżetów jednostek samorządu terytorialnego ",25000,25000]
["700",null,null,"Gospodarka mieszkaniowa ",{"$f":"SUM(E37)","v":35000},{"$f":"SUM(F37)","v":35000},0,0,0,0,0,0]
[null,"70005",null,"Gospodarka gruntami i nieruchomościami",{"$f":"SUM(E38:E41)","v":35000},{"$f":"SUM(F38:F41)","v":35000},0,0,0,0,0,0]
[null,null,"4210","Zakup materiałów wyposażenia",5000,5000]
[null,null,"4260","Zakup energii",1200,1200]
[null,null,"4300","Zakup usług pozostałych",27800,27800]
[null,null,"4610","Koszty postępowania sądowego i prokuratorskiego",1000,1000]
["750",null,null,"Administracja publiczna",{"$f":"E87+E83+E57+E53+E43","v":1620000},{"$f":"F87+F83+F57+F53+F43","v":1600000},1068330,170375,0,0,0,{"$f":"L87+L83+L57+L53+L43","v":20000}]
[null,"75011",null,"Urzędy wojewódzkie",{"$f":"SUM(E44:E52)","v":120885},120885,90850,15125,0,0,0,0]
[null,null,"4010","Wynagrodzenia osobowe pracowników",84000,84000,84000]
[null,null,"4040","Dodatkowe wynagrodzenie roczne",6850,6850,6850]
[null,null,"4110","Składki na ubezpieczenia społeczne",12900,12900,null,12900]
[null,null,"4120","Składki na Fundusz Pracy",2225,2225,null,2225]
[null,null,"4210","Zakup materiałów wyposażenia",3000,3000]
[null,null,"4300","Zakup usług pozostałych",9200,9200]
[null,null,"4410","Podróże służbowe krajowe",300,300]
[null,null,"4440","Odpisy na zakładowy fundusz świadczeń socjalnych",1610,1610]
[null,null,"4700","Szkolenia pracowników niebędących członkami korpusu służby cywilnej",800,800]
[null,"75022",null,"Rady gmin(miast i miast na prawach powiatu)",{"$f":"SUM(E54:E56)","v":61000},{"$f":"SUM(F54:F56)","v":61000},0,0,0,0,0,0]
[null,null,"3030","Różne wydatki na rzecz osób fizycznych",55000,55000]
[null,null,"4300","Zakup usług pozostałych",5000,5000]
[null,null,"4410","Podróże służbowe krajowe",1000,1000]
[null,"75023",null,"Urzędy gmin(miast i miast na prawach powiatu)",{"$f":"SUM(E58:E82)","v":1375315},{"$f":"SUM(F58:F82)","v":1355315},935280,155250,0,0,0,20000]
[null,null,"3020","Nagrody i wydatki osobowe niezaliczone do wynagrodzeń",1000,1000]
[null,null,"4010","Wynagrodzenia osobowe pracowników",865680,865680,865680]
[null,null,"4040","Dodatkowe wynagrodzenie roczne",66500,66500,66500]
[null,null,"4110","Składki na ubezpieczenia społeczne",132400,132400,null,132400]
[null,null,"4120","Składki na Fundusz Pracy",22850,22850,null,22850]
[null,null,"4140","Wpłaty na PFRON",3100,3100]
[null,null,"4170","Wynagrodzenia bezosobowe",3100,3100,3100]
[null,null,"4210","Zakup materiałów i wyposażenia",79425,79425]
[null,null,"4230","Zakup leków i materiałów medycznych",1500,1500]
[null,null,"4260","Zakup energii",23000,23000]
[null,null,"4280","Zakup usług zdrowotnych",800,800]
[null,null,"4300","Zakup usług pozostałych",50000,50000]
[null,null,"4350","Zakup usług dostępu do sieci internet",2500,2500]
[null,null,"4360","Opłaty z tytułu zakupu usług telekomunikacyjnych telefonii komórkowej",2000,2000]
[null,null,"4370","Opłaty z tytułu zakupu usług telekomunikacyjnych telefonii stacjonarnej",18000,18000]
[null,null,"4390","Zakup usług obejmujących wykonanie ekspertyz, analiz i  opinii",21960,21960]
[null,null,"4410","Podróże służbowe krajowe",17000,17000]
[null,null,"4420","Podróże służbowe zagraniczne",5000,5000]
[null,null,"4430","Różne opłaty i składki",9500,9500]
[null,null,"4440","Odpisy na zakładowy fundusz świadczeń socjalnych",18000,18000]
[null,null,"4700","Szkolenia pracowników niebędących członkami korpusu służby cywilnej",5000,5000]
[null,null,"4740","Zakup materiałów papierniczych do sprzętu drukarskiego i urządzeń kserograficznych",2000,2000]
[null,null,"4750","Zakup akcesoriów komputerowych, w tym programów i licencji",5000,5000]
[null,null,"6050","Wydatki inwestycyjne jednostek budżetowych",0,0]
[null,null,"6060","Wydatki na zakupy inwestycyjne jednostek budżetowych",20000,null,null,null,null,null,null,20000]
[null,"75075",null,"Promocja jednostek samorządu terytorialnego",{"$f":"SUM(E84:E86)","v":11000},{"$f":"SUM(F84:F86)","v":11000},2000,0,0,0,0,0]
[null,null,"4170","Wynagrodzenia bezosobowe",2000,2000,2000]
[null,null,"4210","Zakup materiałów i wyposażenia",6000,6000]
[null,null,"4300","Zakup usług pozostałych",3000,3000]
[null,"75095",null,"Pozostała działalność",{"$f":"SUM(E88:E91)","v":51800},{"$f":"SUM(F88:F91)","v":51800},40200,0,0,0,0,0]
[null,null,"3030","Różne wydatki na rzecz osób fizycznych",9600,9600]
[null,null,"4100","Wynagrodzenia agencyjno-prowizyjne",40200,40200,40200]
[null,null,"4210","Zakup materiałów i wyposażenia ",1000,1000]
[null,null,"4300","Zakup usług pozostałych",1000,1000]
["751",null,null,"Urzędy naczelnych organów władzy państwowej, kontroli i ochrony prawa oraz sądownictwa",{"$f":"E93","v":1037},{"$f":"F93","v":1037},0,0,0,0,0,0]
[null,"75101",null,"Urzędy naczelnych organów władzy państwowej, kontroli i ochrony prawa",{"$f":"SUM(E94)","v":1037},{"$f":"SUM(F94)","v":1037},0,0,0,0,0,0]
[null,null,"4300","Zakup usług pozostałych",1037,1037]
["754",null,null,"Bezpieczeństwo publiczne i ochrona przeciwpożarowa",{"$f":"E96+E105","v":72700},{"$f":"F96+F105","v":72700},14832,2475,0,0,0,0]
[null,"75412",null,"Ochotnicze straże pożarne",{"$f":"SUM(E97:E104)","v":72100},{"$f":"SUM(F97:F104)","v":72100},14832,2475,0,0,0,0]
[null,null,"4110","Składki na ubezpieczenia społeczne",2110,2110,null,2110]
[null,null,"4120","Składki na Fundusz Pracy",365,365,null,365]
[null,null,"4170","Wynagrodzenia bezosobowe ",14832,14832,14832]
[null,null,"4210","Zakup materiałów i wyposażenia ",24093,24093]
[null,null,"4260","Zakup energii",11000,11000]
[null,null,"4300","Zakup usług pozostałych",6700,6700]
[null,null,"4370","Opłaty z tytułu zakupu usług telekomunikacyjnych telefonii stacjonarnej",1000,1000]
[null,null,"4430","Różne opłaty i składki",12000,12000]
[null,"75414",null,"Obrona cywilna ",{"$f":"SUM(E106)","v":600},{"$f":"SUM(F106)","v":600},0,0,0,0,0,0]
[null,null,"4210","Zakup materiałów i wyposażenia ",600,600]
["757",null,null,"Obsługa długu publicznego",{"$f":"E108","v":250000},{"$f":"F108","v":250000},0,0,0,250000,0,{"$f":"L108","v":0}]
[null,"75702",null,"Obsługa papierów wartościowych, kredytów i pożycz jednostek samorządu terytorialnego",{"$f":"SUM(E109)","v":250000},{"$f":"SUM(F109)","v":250000},{"$f":"SUM(G109)","v":0},0,0,250000,0,0]
[null,null,"8070","Odsetki i dyskonto od krajowych skarbowych papierów wartościowych oraz pożyczek i kredytów",250000,250000,null,null,null,250000]
["758",null,null,"Różne rozliczenia",{"$f":"E111+E113","v":53000},{"$f":"F111+F113","v":53000},0,0,0,0,0,0]
[null,"775814",null,"Różne rozliczenia finansowe",{"$f":"SUM(E112)","v":3000},{"$f":"SUM(F112)","v":3000},0,0,0,0,0,0]
[null,null,"4300","Zakup usług pozostałych",3000,3000]
[null,"75818",null,"Rezerwy ogólne i celowe",{"$f":"SUM(E114)","v":50000},{"$f":"SUM(F114)","v":50000},0,0,0,0,0,0]
[null,null,"4810","Rezerwy ",50000,50000]
["801",null,null,"Oświata i wychowanie ",{"$f":"E116+E137+E145+E158+E177+E190+E208+E211+E218","v":4972243},{"$f":"F116+F137+F145+F158+F177+F190+F208+F211+F218","v":4972243},3191292,610327,0,0,0,{"$f":"L116+L137+L145+L158+L177+L190+L208+L211+L218","v":0}]
[null,"80101",null,"Szkoły podstawowe",{"$f":"SUM(E117:E136)","v":2435052},2435052,1635805,313765,0,0,0,0]
[null,null,"3020","Nagrody i wydatki osobowe niezaliczone do wynagrodzeń",130880,130880]
[null,null,"4010","Wynagrodzenia osobowe pracowników",1505000,1505000,1505000]
[null,null,"4040","Dodatkowe wynagrodzenie roczne",116305,116305,116305]
[null,null,"4110","Składki na ubezpieczenia społeczne",270860,270860,null,270860]
[null,null,"4120","Składki na Fundusz Pracy",42905,42905,null,42905]
[null,null,"4170","Wynagrodzenia bezosobowe",14500,14500,14500]
[null,null,"4210","Zakup materiałów i wyposażenia",140000,140000]
[null,null,"4240","Zakup pomocy naukowych dydaktycznych i książek",1000,1000]
[null,null,"4260","Zakup energii",28600,28600]
[null,null,"4270","Zakup usług remontowych",44000,44000]
[null,null,"4280","Zakup usług zdrowotnych",2600,2600]
[null,null,"4300","Zakup usług pozostałych",29500,29500]
[null,null,"4350","Zakup usług dostępu do sieci internet",3677,3677]
[null,null,"4360","Opłaty z tytułu zakupu usług telekomunikacyjnych telefonii komórkowej",0]
[null,null,"4370","Opłaty z tytułu zakupu usług telekomunikacyjnych telefonii stacjonarnej",11650,11650]
[null,null,"4410","Podróże służbowe krajowe",2600,2600]
[null,null,"4430","Różne opłaty i składki",7400,7400]
[null,null,"4440","Odpisy na zakładowy fundusz świadczeń socjalnych",78775,78775]
[null,null,"4740","Zakup materiałów papierniczych do sprzętu drukarskiego i urządzeń kserograficznych",3000,3000]
[null,null,"4750","Zakup akcesoriów komputerowych, w tym programów i licencji",1800,1800]
[null,"80103",null,"Oddziały przedszkolne w szkołach podstawowych",{"$f":"SUM(E138:E144)","v":219890},{"$f":"SUM(F138:F144)","v":219890},163380,32120,0,0,0,0]
[null,null,"3020","Nagrody i wydatki osobowe niezaliczone do wynagrodzeń",15990,15990]
[null,null,"4010","Wynagrodzenia osobowe pracowników",151600,151600,151600]
[null,null,"4040","Dodatkowe wynagrodzenie roczne",11780,11780,11780]
[null,null,"4110","Składki na ubezpieczenia społeczne",27730,27730,null,27730]
[null,null,"4120","Składki na Fundusz Pracy",4390,4390,null,4390]
[null,null,"4280","Zakup usług zdrowotnych",100,100]
[null,null,"4440","Odpisy na zakładowy fundusz świadczeń socjalnych",8300,8300]
[null,"80104",null,"Przedszkola",{"$f":"SUM(E146:E157)","v":293660},{"$f":"SUM(F146:F157)","v":293660},202900,39500,0,0,0,0]
[null,null,"3020","Nagrody i wydatki osobowe niezaliczone do wynagrodzeń",17700,17700]
[null,null,"4010","Wynagrodzenia osobowe pracowników",188000,188000,188000]
[null,null,"4040","Dodatkowe wynagrodzenie roczne",14900,14900,14900]
[null,null,"4110","Składki na ubezpieczenia społeczne",34100,34100,null,34100]
[null,null,"4120","Składki na Fundusz Pracy",5400,5400,null,5400]
[null,null,"4210","Zakup materiałów i wyposażenia",5000,5000]
[null,null,"4260","Zakup energii",1500,1500]
[null,null,"4280","Zakup usług zdrowotnych",120,120]
[null,null,"4300","Zakup usług pozostałych",15000,15000]
[null,null,"4370","Opłaty z tytułu zakupu usług telekomunikacyjnych telefonii stacjonarnej",1600,1600]
[null,null,"4430","Różne opłaty i składki",430,430]
[null,null,"4440","Odpisy na zakładowy fundusz świadczeń socjalnych",9910,9910]
[null,"80110",null,"Gimnazja",{"$f":"SUM(E159:E176)","v":1295223},{"$f":"SUM(F159:F176)","v":1295223},879000,168380,0,0,0,0]
[null,null,"3020","Nagrody i wydatki osobowe niezaliczone do wynagrodzeń",78960,78960]
[null,null,"4010","Wynagrodzenia osobowe pracowników",800500,800500,800500]
[null,null,"4040","Dodatkowe wynagrodzenie roczne",61600,61600,61600]
[null,null,"4110","Składki na ubezpieczenia społeczne",145250,145250,null,145250]
[null,null,"4120","Składki na Fundusz Pracy",23130,23130,null,23130]
[null,null,"4170","Wynagrodzenia bezosobowe",16900,16900,16900]
[null,null,"4210","Zakup materiałów i wyposażenia",41600,41600]
[null,null,"4260","Zakup energii",15000,15000]
[null,null,"4270","Zakup usług remontowych",30000,30000]
[null,null,"4280","Zakup usług zdrowotnych",1000,1000]
[null,null,"4300","Zakup usług pozostałych",18200,18200]
[null,null,"4350","Zakup usług dostępu do sieci internet",1600,1600]
[null,null,"4370","Opłaty z tytułu zakupu usług telekomunikacyjnych telefonii stacjonarnej",2900,2900]
[null,null,"4410","Podróże służbowe krajowe",1750,1750]
[null,null,"4430","Różne opłaty i składki",3000,3000]
[null,null,"4440","Odpisy na zakładowy fundusz świadczeń socjalnych",50733,50733]
[null,null,"4740","Zakup materiałów papierniczych do sprzętu drukarskiego i urządzeń kserograficznych",1600,1600]
[null,null,"4750","Zakup akcesoriów komputerowych, w tym programów i licencji",1500,1500]
[null,"80113",null,"Dowożenie uczniów do szkół",{"$f":"SUM(E178:E189)","v":308754},{"$f":"SUM(F178:F189)","v":308754},41077,7610,0,0,0,0]
[null,null,"3020","Nagrody i wydatki osobowe niezaliczone do wynagrodzeń",12,12]
[null,null,"4010","Wynagrodzenia osobowe pracowników",38000,38000,38000]
[null,null,"4040","Dodatkowe wynagrodzenie roczne",3077,3077,3077]
[null,null,"4110","Składki na ubezpieczenia społeczne",6600,6600,null,6600]
[null,null,"4120","Składki na Fundusz Pracy",1010,1010,null,1010]
[null,null,"4210","Zakup materiałów i wyposażenia",37000,37000]
[null,null,"4280","Zakup usług zdrowotnych",100,100]
[null,null,"4300","Zakup usług pozostałych",220000,220000]
[null,null,"4360","Opłaty z tytułu zakupu usług telekomunikacyjnych telefonii komórkowej",350,350]
[null,null,"4410","Podróże służbowe krajowe ",200,200]
[null,null,"4430","Różne opłaty i składki",1600,1600]
[null,null,"4440","Odpisy na zakładowy fundusz świadczeń socjalnych",805,805]
[null,"80114",null,"Zespoły obsługi ekonomiczno-administracyjnej szkół",{"$f":"SUM(E191:E207)","v":248601},{"$f":"SUM(F191:F207)","v":248601},183700,33652,0,0,0,0]
[null,null,"3020","Nagrody i wydatki osobowe niezaliczone do wynagrodzeń",24,24]
[null,null,"4010","Wynagrodzenia osobowe pracowników",170000,170000,170000]
[null,null,"4040","Dodatkowe wynagrodzenie roczne",13700,13700,13700]
[null,null,"4110","Składki na ubezpieczenia społeczne",29200,29200,null,29200]
[null,null,"4120","Składki na Fundusz Pracy",4452,4452,null,4452]
[null,null,"4210","Zakup materiałów i wyposażenia",8000,8000]
[null,null,"4280","Zakup usług zdrowotnych",200,200]
[null,null,"4300","Zakup usług pozostałych",2000,2000]
[null,null,"4350","Zakup usług dostępu do sieci internet",1800,1800]
[null,null,"4360","Opłaty z tytułu zakupu usług telekomunikacyjnych telefonii komórkowej",2000,2000]
[null,null,"4370","Opłaty z tytułu zakupu usług telekomunikacyjnych telefonii stacjonarnej",3500,3500]
[null,null,"4410","Podróże służbowe krajowe",2500,2500]
[null,null,"4440","Odpisy na zakładowy fundusz świadczeń socjalnych",4025,4025]
[null,null,"4700","Szkolenia pracowników niebędących członkami korpusu służby cywilnej",1000,1000]
[null,null,"4740","Zakup materiałów papierniczych do sprzętu drukarskiego i urządzeń kserograficznych",1200,1200]
[null,null,"4750","Zakup akcesoriów komputerowych, w tym programów i licencji",5000,5000]
[null,null,"6060","Wydatki na zakupy inewstycyjne jednostek budżetowych",0]
[null,"80146",null,"Dokształcanie i doskonalenie nauczycieli",{"$f":"SUM(E209:E210)","v":27790},{"$f":"SUM(F209:F210)","v":27790},0,0,0,0,0,0]
[null,null,"4300","Zakup usług pozostalych",25200,25200]
[null,null,"4410","Podróże służbowe krajowe",2590,2590]
[null,"80148",null,"Stołówki szkolne",{"$f":"SUM(E212:E217)","v":104815},{"$f":"SUM(F212:F217)","v":104815},85430,15300,0,0,0,0]
[null,null,"3020","Nagrody i wydatki osobowe niezaliczone do wynagrodzeń",60,60]
[null,null,"4010","Wynagrodzenia osobowe pracowników",78980,78980,78980]
[null,null,"4040","Dodatkowe wynagrodzenie roczne",6450,6450,6450]
[null,null,"4110 ","Składki na ubezpieczenia społeczne",13207,13207,null,13207]
[null,null,"4120","Składki na Fundusz Pracy",2093,2093,null,2093]
[null,null,"4440","Odpisy na zakładowy fundusz świadczeń socjalnych",4025,4025]
[null,"80195",null,"Pozostała działalność",{"$f":"SUM(E219:E220)","v":38458},{"$f":"SUM(F219:F220)","v":38458},0,0,0,0,0,0]
[null,null,"3030","Różne wydatki na rzecz osób fizycznych ",8081,8081]
[null,null,"4440","Odpisy na zakładowy fundusz świadczeń socjalnych",30377,30377]
["851",null,null,"Ochrona zdrowia",{"$f":"SUM(E222)","v":28700},{"$f":"SUM(F222)","v":28700},6600,0,0,0,0,0]
[null,"85154",null,"Przeciwdziałanie alkoholizmowi",{"$f":"SUM(E223:E226)","v":28700},{"$f":"SUM(F223:F226)","v":28700},6600,0,0,0,0,0]
[null,null,"4170","Wynagrodzenia bezosobowe",6600,6600,6600]
[null,null,"4210","Zakup materiałów i wyposażenia",1680,1680]
[null,null,"4300","Zakup usług pozostałych",19920,19920]
[null,null,"4410","Podróże służbowe krajowe",500,500]
[]
["852",null,null,"Pomoc społeczna",{"$f":"E229+E245+E247+E249+E251+E255+E272","v":2574280},{"$f":"F229+F245+F247+F249+F251+F255+F272","v":2574280},250472,50939,0,0,0,0]
[null,"85212",null,"Świadczenia rodzinne, zaliczka alimentacyjna oraz składki na ubezpieczenia emerytalne i rentowe z ubezpieczenia społecznego",{"$f":"SUM(E230:E244)","v":1800000},{"$f":"SUM(F230:F244)","v":1800000},28210,8965,0,0,0,0]
[null,null,"3110","Świadczenia społeczne",1750000,1750000]
[null,null,"4010","Wynagrodzenia osobowe pracowników",26100,26100,26100]
[null,null,"4040","Dodatkowe wynagrodzenie roczne",2110,2110,2110]
[null,null,"4110","Składki na ubezpieczenia społeczne",8250,8250,null,8250]
[null,null,"4120","Składki na Fundusz Pracy",715,715,null,715]
[null,null,"4210","Zakup materiałów i wyposażenia",4125,4125]
[null,null,"4280","Zakup usług zdrowotnych",120,120]
[null,null,"4300","Zakup usług pozostałych",3000,3000]
[null,null,"4360","Opłaty z tytułu zakupu usług telekomunikacyjnych telefonii komórkowej",100,100]
[null,null,"4370","Opłaty z tytułu zakupu usług telekomunikacyjnych telefonii stacjonarnej",2000,2000]
[null,null,"4410","Podróże służbowe krajowe",400,400]
[null,null,"4440","Odpisy na zakładowy fundusz świadczeń socjalnych",880,880]
[null,null,"4700","Szkolenia pracowników niebędących członkami korpusu służby cywilnej",400,400]
[null,null,"4740","Zakup materiałów papierniczych do sprzętu drukarskiego i urządzeń kserograficznych",800,800]
[null,null,"4750","Zakup akcesoriów komputerowych, w tym programów i licencji",1000,1000]
[null,"85213",null,"Składki na ubezpieczenie zdrowotne opłacane za osoby pobierajace niektóre  swiadczenia z pomocy społecznej oraz niektóre świadczenia rodzinne",{"$f":"SUM(E246)","v":7200},{"$f":"SUM(F246)","v":7200},0,0,0,0,0,0]
[null,null,"4130","Składki na ubezpieczenie zdrowotne",7200,7200]
[null,"85214",null,"Zasiłki i pomoc w naturze oraz skladki na ubezpieczenia emerytalne i rentowe ",{"$f":"SUM(E248)","v":201500},{"$f":"SUM(F248)","v":201500},0,0,0,0,0,0]
[null,null,"3110","Świadczenia społeczne",201500,201500]
[null,"85215",null,"Dodatki mieszkaniowe",{"$f":"SUM(E250)","v":80000},{"$f":"SUM(F250)","v":80000},0,0,0,0,0,0]
[null,null,"3110","Świadczenia społeczne",80000,80000]
[null,"85228",null,"Usługi opiekuńcze i specjalistyczne usługi opiekuńcze",{"$f":"SUM(E252:E254)","v":13300},{"$f":"SUM(F252:F254)","v":13300},13300,0,0,0,0,0]
[null,null,"4110","Składki na ubezpieczenia społeczne ",0]
[null,null,"4120","Składki na Fundusz Pracy",0]
[null,null,"4170","Wynagrodzenia bezosobowe",13300,13300,13300]
[null,"85219",null,"Ośrodki pomocy społecznej",{"$f":"SUM(E256:E271)","v":274680},{"$f":"SUM(F256:F271)","v":274680},208962,41974,0,0,0,0]
[null,null,"4010","Wynagrodzenia osobowe pracowników",194802,194802,194802]
[null,null,"4040","Dodatkowe wynagrodzenie roczne",14160,14160,14160]
[null,null,"4110","Składki na ubezpieczenia społeczne",36960,36960,null,36960]
[null,null,"4120","Składki na Fundusz Pracy",5014,5014,null,5014]
[null,null,"4170","Wynagrodzenia bezosobowe",0]
[null,null,"4210","Zakup materiałów i wyposażenia",1000,1000]
[null,null,"4230","Zakup leków, wyrobów medycznych i produktów biobójczych",400,400]
[null,null,"4280","Zakup usług zdrowotnych",240,240]
[null,null,"4300","Zakup usług pozostałych",8824,8824]
[null,null,"4360","Opłaty z tytułu zakupu usług telekomunikacyjnych telefonii komórkowej",0,0]
[null,null,"4370","Opłaty z tytułu zakupu usług telekomunikacyjnych telefonii stacjonarnej",3800,3800]
[null,null,"4410","Podróże służbowe krajowe",3000,3000]
[null,null,"4440","Odpisy na zakładowy fundusz świadczeń socjalnych",5280,5280]
[null,null,"4700","Szkolenia pracowników niebędących członkami korpusu służby cywilnej",500,500]
[null,null,"4740","Zakup materiałów papierniczych do sprzętu drukarskiego i urządzeń kserograficznych",300,300]
[null,null,"4750","Zakup akcesoriów komputerowych, w tym programów i licencji",400,400]
[null,"85295",null,"Pozostała działalność",{"$f":"SUM(E273:E276)","v":197600},197600,0,0,0,0,0,0]
[null,null,"3110","Świadczenia społeczne",50000,50000]
[null,null,"4210","Zakup materiałów i wyposażenia",0,0]
[null,null,"4300","Zakup usług pozostałych",3500,3500]
[null,null,"4330","Zakup usług przez jednostki samorządu terytorialnego od innych jednostek samorządu terytorialnego",144100,144100]
["854",null,null,"Edukacyjna opieka wychowawcza",{"$f":"E278+E285+E288","v":194384},{"$f":"F278+F285+F288","v":194384},138570,26918,0,0,0,0]
[null,"85401",null,"Świetlice szkolne ",{"$f":"SUM(E279:E284)","v":183313},{"$f":"SUM(F279:F284)","v":183313},138570,26918,0,0,0,0]
[null,null,"3020","Nagrody i wydatki osobowe niezaliczone do wynagrodzeń",11600,11600]
[null,null,"4010","Wynagrodzenia osobowe pracowników",129120,129120,129120]
[null,null,"4040","Dodatkowe wynagrodzenie roczne",9450,9450,9450]
[null,null,"4110 ","Składki na ubezpieczenia społeczne",23233,23233,null,23233]
[null,null,"4120","Składki na Fundusz Pracy",3685,3685,null,3685]
[null,null,"4440","Odpisy na zakładowy fundusz świadczeń socjalnych",6225,6225]
[null,"85415",null,"Pomoc materialna dla uczniów",{"$f":"SUM(E286:E287)","v":10000},{"$f":"SUM(F286:F287)","v":10000},0,0,0,0,0,0]
[null,null,"3240","Stypendia dla uczniów",10000,10000]
[null,null,"3260","Inne formy pomocy dla uczniów",0]
[null,"85446",null,"Dokształcanie i doskonalenie nauczycieli",{"$f":"SUM(E289:E290)","v":1071},{"$f":"SUM(F289:F290)","v":1071},0,0,0,0,0,0]
[null,null,"4300","Zakup usług pozostałych",1071,1071]
[null,null,"4410","Podfróże służbowe krajowe",0]
["900",null,null,"Gospodarka komunalna i ochrona środowiska",{"$f":"E292+E294+E296+E300+E302","v":363000},{"$f":"F292+F294+F296+F300+F302","v":363000},0,0,91000,0,0,0]
[null,"90003",null,"Oczyszczanie miast i wsi",{"$f":"SUM(E293)","v":21000},{"$f":"SUM(F293)","v":21000},0,0,0,0,0,0]
[null,null,"4300","Zakup usług pozostałych",21000,21000]
[null,"90004",null,"Utrzymanie zieleni w miastach i gminach",{"$f":"SUM(E295)","v":4000},{"$f":"SUM(F295)","v":4000},0,0,0,0,0,0]
[null,null,"4300","Zakup usług pozostałych",4000,4000]
[null,"90015",null,"Oświetlenie ulic, placów i dróg",{"$f":"SUM(E297:E299)","v":230000},{"$f":"SUM(F297:F299)","v":230000},0,0,0,0,0,0]
[null,null,"4210","Zakup materiałów i wyposażenia",42000,42000]
[null,null,"4260","Zakup energii",143000,143000]
[null,null,"4300","Zakup usług pozostałych",45000,45000]
[null,"90017",null,"Zakłady gospodarki komunalnej",{"$f":"SUM(E301)","v":91000},{"$f":"SUM(F301)","v":91000},0,0,91000,0,0,0]
[null,null,"2650","Dotacja przedmiotowa z budżetu dla zakładu budżetowego",91000,91000,null,null,91000]
[null,"90095",null,"Pozostała działalność",{"$f":"SUM(E303:E305)","v":17000},{"$f":"SUM(F303:F305)","v":17000},0,0,0,0,0,0]
[null,null,"4210","Zakup materiałów i wyposażenia",2000,2000]
[null,null,"4300","Zakup usług pozostałych",0]
[null,null,"4480","Podatek od nieruchomości",15000,15000]
["921",null,null,"Kultura i ochrona dziedzictwa kulturowego",{"$f":"E307+E310","v":253505},{"$f":"F307+F310","v":253505},0,0,251405,0,0,0]
[null,"92109",null,"Domy i ośrodki kultury, świetlice i kluby",{"$f":"SUM(E308:E309)","v":137905},{"$f":"SUM(F308:F309)","v":137905},0,0,135805,0,0,0]
[null,null,"2480","Dotacja podmiotowa z budżetu dla samorządowej instytucji kultury",135805,135805,null,null,135805]
[null,null,"4260","Zakup energii",2100,2100]
[null,"92116",null,"Boblioteki",{"$f":"SUM(E311:E312)","v":115600},{"$f":"SUM(F311:F312)","v":115600},0,0,115600,0,0,0]
[null,null,"2480","Dotacja podmiotowa z budżetu dla samorządowej instytucji kultury",115600,115600,null,null,115600]
[null,null,"4260","Zakup energii",0]
["926",null,null,"Kultura fizyczna i sport",{"$f":"E314","v":32259},{"$f":"F314","v":32259},0,0,0,0,0,0]
[null,"92605",null,"Zadania w zakresie kultury fizycznej i sportu",{"$f":"SUM(E315:E319)","v":32259},{"$f":"SUM(F315:F319)","v":32259},0,0,0,0,0,0]
[null,null,"3030","Różne wydatki na rzecz osób fizycznych",10700,10700]
[null,null,"4210","Zakup materiałów i wyposażenia",10450,10450]
[null,null,"4300","Zakup usług pozostałych",4100,4100]
[null,null,"4430","Różne opłaty i składki",7009,7009]
[null,null,"6050","Wydatki inwestycyjne jednostek budżetowych",0]
[]
[]
["Ogółem wydatki",null,null,null,{"$f":"E17+E25+E36+E42+E92+E95+E107+E110+E115+E228+E277+E291+E306+E313+E221","v":14169000},{"$f":"F17+F25+F36+F42+F92+F95+F107+F110+F115+F228+F277+F291+F306+F313+F221","v":10629000},{"$f":"G17+G25+G36+G42+G92+G95+G107+G110+G115+G228+G277+G291+G306+G313+G221","v":4670096},861034,342405,250000,0,3540000]
[]
["(* kol. 3 do wykorzystania fakultatywnego)"]

{"sheet":"3","index":2,"n_rows":38,"n_cols":14,"rows_kept":38,"cut":false,"hidden":false,"merged":[[30,0,30,4],[2,3,6,3],[0,0,0,13],[2,0,6,0],[2,1,6,1],[2,2,6,2],[2,4,6,4],[2,6,2,12],[2,13,6,13],[3,6,6,6],[2,5,6,5],[3,11,6,11],[3,7,3,10],[4,7,6,7],[4,8,6,8],[4,9,6,9],[4,10,6,10],[3,12,6,12]]}
["Limity wydatków na wieloletnie programy inwestycyjne w latach 2008 - 2010"]
[null,null,null,null,null,null,null,null,null,null,null,null,null,"w złotych"]
["Lp.","Dział","Rozdz.","§**","Nazwa zadania inwestycyjnego\ni okres realizacji\n(w latach)","Łączne koszty finansowe","Planowane wydatki",null,null,null,null,null,null,"Jednostka organizacyjna realizująca program lub koordynująca wykonanie programu"]
[null,null,null,null,null,null,"rok budżetowy 2008 (8+9+10+11)","z tego źródła finansowania",null,null,null,"2009 r.","2010 r."]
[null,null,null,null,null,null,null,"dochody własne jst","kredyty\ni pożyczki","środki pochodzące\n z innych  źródeł*","środki wymienione\nw art. 5 ust. 1 pkt 2 i 3 u.f.p."]
[]
[]
[1,2,3,4,5,6,7,8,9,10,11,12,13,14]
["1.","010","01010",6050,"Budowa stacji uzdatniania wody wraz ze studniami głębinowymi w miejscowości Czepielin i sieci wodociągowej z przyłączami w miejscowościach Czepielin i Kolonia Czepielin warunkiem rozwoju Gminy Mordy","5.500.000","1.282.000","576.000","706.000","A.      \nB.\nC.\n…",null,"4.218.000",null,"Urząd Miasta i Gminy "]
["2.","010","01010",6050,"Ochrona czystości wód rzeki Liwiec poprzez rozbudowę oczyszczalni ścieków  w miejscowości Kolonia Mordy","2.070.000","100.000","100.000",null,"A.      \nB.\nC.\n…",null,"1.970.000",null,"Urząd Miasta i Gminy "]
["3.","010","01010",6050," Budowa sieci wodociągowej z przyłączami w miejscowościach:Radzików Wielki, Radzików Kornica, Radzików Stopki, Piory Pytki i Ostoje,Wielgorz,Wyczółki, Czepielin, Kolonia Czepielin","650.000",null,null,null,null,null,"150.000","500.000","Urząd Miasta i Gminy "]
["4.","010","01010",6050,"Ochrona obszaru Natura 2000 przed zanieczyszczeniami poprzez budowę systemów kanalizacji sanitarnej w gminie Mordy","1.800.000",null,null,null,null,null,null,"1.800.000","Urząd Miasta i Gminy "]
["5.","010","01010",6050,"Rozbudowa kanalizacji sanitarnej z przykanalikami w Mordach przy ul.Narutowicza","260.000","260.000","20.000","90.000","A.      \nB.150.000\nC.\n…",null,null,null,"Urząd Miasta i Gminy "]
["6.","600","60014",6050,"Poprawa bezpieczeństwa drogowego i zwiększenie atrakcyjności miasta Mordy poprzez przebudowę jezdni i chodników","2.100.000","1.300.000",null,"1.200.000","A.      \nB.100.000\nC.\n…",null,"800.000",null,"Urząd Miasta i Gminy "]
["7.","600","60016",6050,"Poprawa atrakcyjnosci turystycznej regionu poprzez przebudowę drogi w miejscowości Klimonty","700.000",null,null,null,null,null,null,"700.000","Urząd Miasta i Gminy "]
["8.","600","60016",6050,"Polepszenie warunków życia społecznści lokalnej poprzez połączenie ciągów komunikacyjnych dróg powiatowych i wojewódzkich w miejscowości Głuchów","500.000",null,null,null,null,null,null,"500.000","Urząd Miasta i Gminy "]
["9.","600","60016",6050,"Poprawa warunków życia społeczności  lokalnych poprzez przebudowę drogi gminnej we wsi Olędy łączącej siedziby gmin","600.000",null,null,null,null,null,null,"600.000","Urząd Miasta i Gminy "]
["10.","600","60016",6050,"Usprawnienie komunikacji spoleczności lokalnej poprzez przebudowę drogi w Wólce Soseńskiej","650.000",null,null,null,null,null,null,"650.000","Urząd Miasta i Gminy "]
["11.","600","60016",6050,"Poprawa warunków życia społeczności lokalnej poprzez przebudowę drogi gminnej Rogóziec-Ptaszki łączącej dwa ciągi powiatowe","2.600.000",null,null,null,null,null,null,"2.600.000","Urząd Miasta i Gminy "]
["12.",600,60016,6050,"Odwodnienie ulicy Pustej w Mordach","65.000","65.000","65.000",null,null,null,null,null,"Urząd Miasta i Gminy "]
[13,750,75023,6050,"Modernizacja budynku ośrodka zdrowia, pomocy społecznej i Urzędu Miasta i Gminy  w Mordach ","2.000.000","70.000","70.000",null,null,null,"1.930.000",null,"Urząd Miasta i Gminy "]
[14,750,75023,6060,"Zakup zespołów komputerowych dla UMiG w Mordach","20.000","20.000","20.000",null,null,null,null,null,"Urząd Miasta i Gminy "]
[15,926,92605,6050,"Poprawa atrakcyjności miasta Mordy poprzez budowę infrastruktury sportowej","1.750.000",null,null,null,null,null,"1.750.000",null,"Urząd Miasta i Gminy "]
[16,801,80101,6050,"Budowa instalacji zbiornikowej na gaz płynny ze zbiorrnikiem i instalacji gazowej w budynku Szkoły Podstawowej w Mordach","14.000","14.000","14.000",null,null,null,null,null," ZEASZ"]
[17,801,80101,6050,"Modernizacja boiska szkolnego i wyposażenie placu zabaw w Zespole Oświatowym w Mordach","198.000","198.000",null,"148.000","A.      \nB.50.000\nC.\n…",null,null,null,"ZEASZ"]
[18,801,80101,6050,"Budowa boiska w Radzikowie Wielkim","130.000","130.000",null,"100.000","A.      \nB.30.000\nC.\n…",null,null,null,"ZEASZ"]
[19,851,85121,6050,"Modernizacja budynku Ośrodka Zdrowia w Radzikowie Wielkim","300.000","30.000","30.000",null,"A.      \nB.\nC.\n…",null,"270.000",null,"Urząd Miasta i Gminy "]
[20,600,60016,6050,"Przebudowa drogi gminnej we wsi Głuchów  gmina Mordy- nawierzchnia bitumiczna","306.000","306.000",null,"106.000","A.      \nB.200.000\nC.\n…",null,null,null,"Urząd Miasta i Gminy "]
[21,921,62109,6050,"Odnowa centrum miejscowości Klimonty","666.000","2.000","2.000",null,null,null,"664.000",null,"Urząd Miasta i Gminy "]
[22,600,60016,6050,"Modernizacja drogi transportu rolnego Stara Wieś- Wojnów","115.000","115.000",null,"75.000","40.000",null,null,null,"Urząd Miasta i Gminy "]
["Ogółem",null,null,null,null,"22.994.000","3.892.000","935.000","2.387.000","570.000",null,"11.752.000","7.350.000","x"]
[]
["* Wybrać odpowiednie oznaczenie źródła finansowania:",null,null,null,null,null,null,null,null,null,null,null,null,18]
["A. Dotacje i środki z budżetu państwa (np. od wojewody, MEN, UKFiS, …)"]
["B. Środki i dotacje otrzymane od innych jst oraz innych jednostek zaliczanych do sektora finansów publicznych"]
["C. Inne źródła "]
[]
["(** kol. 4 do wykorzystania fakultatywnego)"]

{"sheet":"3a","index":3,"n_rows":20,"n_cols":12,"rows_kept":20,"cut":false,"hidden":false,"merged":[[12,0,12,4],[0,0,0,11],[2,0,6,0],[2,1,6,1],[2,2,6,2],[2,4,6,4],[2,6,2,10],[2,11,6,11],[3,6,6,6],[2,3,6,3],[2,5,6,5],[3,7,3,10],[4,7,6,7],[4,8,6,8],[4,9,6,9],[4,10,6,10]]}
["Zadania inwestycyjne w 2008 r."]
[null,null,null,null,null,null,null,null,null,null,null,"w złotych"]
["Lp.","Dział","Rozdz.","§**","Nazwa zadania inwestycyjnego","Łączne koszty finansowe","Planowane wydatki",null,null,null,null,"Jednostka organizacyjna realizująca program lub koordynująca wykonanie programu"]
[null,null,null,null,null,null,"rok 2008 (8+9+10+11)","z tego źródła finansowania"]
[null,null,null,null,null,null,null,"dochody własne jst","kredyty\ni pożyczki","środki pochodzące\nz innych  źródeł*","środki wymienione\nw art. 5 ust. 1 pkt 2 i 3 u.f.p."]
[]
[]
[1,2,3,4,5,6,7,8,9,10,11,12]
["1.",null,null,null,null,null,null,null,null,"A.      \nB.\nC.\n…"]
["2.",null,null,null,null,null,null,null,null,"A.      \nB.\nC.\n…"]
["3.",null,null,null,null,null,null,null,null,"A.      \nB.\nC.\n…"]
["4.",null,null,null,null,null,null,null,null,"A.      \nB.\nC.\n…"]
["Ogółem",null,null,null,null,null,null,null,null,null,null,"x"]
[]
["* Wybrać odpowiednie oznaczenie źródła finansowania:"]
["A. Dotacje i środki z budżetu państwa (np. od wojewody, MEN, UKFiS, …)"]
["B. Środki i dotacje otrzymane od innych jst oraz innych jednostek zaliczanych do sektora finansów publicznych"]
["C. Inne źródła "]
[]
["(** kol. 4 do wykorzystania fakultatywnego)"]

{"sheet":"4","index":4,"n_rows":44,"n_cols":17,"rows_kept":44,"cut":false,"hidden":false,"merged":[[0,0,0,16],[30,2,33,16],[29,2,29,3],[28,2,28,16],[3,7,3,16],[9,2,9,3],[2,1,7,1],[3,6,7,6],[2,3,7,3],[2,7,2,16],[6,12,7,12],[4,8,4,16],[6,13,6,16],[5,8,5,11],[5,12,5,16],[2,0,7,0],[42,0,42,9],[10,0,18,0],[19,0,27,0],[30,0,38,0],[40,0,40,1],[10,2,13,16],[40,2,40,3],[4,7,7,7],[39,2,39,16],[19,2,22,16],[2,2,7,2],[6,8,7,8],[3,5,7,5],[6,9,6,11],[2,5,2,6],[2,4,7,4]]}
["Wydatki* na programy i projekty realizowane ze środków pochodzących z funduszy strukturalnych i Funduszu Spójności"]
[]
["Lp.","Projekt","Kategoria interwencji funduszy strukturalnych","Klasyfikacja (dział, rozdział,\nparagraf)","Wydatki\nw okresie realizacji Projektu (całkowita wartość Projektu)\n(6+7)","w tym:",null,"Planowane wydatki"]
[null,null,null,null,null,"Środki\nz budżetu krajowego","Środki\nz budżetu UE","2008 r."]
[null,null,null,null,null,null,null,"Wydatki razem (9+13)","z tego:"]
[null,null,null,null,null,null,null,null,"Środki z budżetu krajowego**",null,null,null,"Środki z budżetu UE"]
[null,null,null,null,null,null,null,null,"Wydatki razem (10+11+12)","z tego, źródła finansowania:",null,null,"Wydatki razem (14+15+16+17)","z tego, źródła finansowania:"]
[null,null,null,null,null,null,null,null,null,"pożyczki\ni kredyty","obligacje","pozostałe**",null,"pożyczki na prefinansowanie z budżetu państwa","pożyczki\ni kredyty","obligacje","pozostałe"]
[1,2,3,4,5,6,7,8,9,10,11,12,13,14,15,16,17]
[1,"Wydatki majątkowe razem:","x"]
["1.1","Program:"]
[null,"Priorytet:"]
[null,"Działanie:"]
[null,"Nazwa projektu:"]
[null,"Razem wydatki:"]
[null,"z tego: 2008 r."]
[null,"2009 r."]
[null,"2010r."]
[null,"2011 r"]
["1.2","Program:"]
[null,"Priorytet:"]
[null,"Działanie:"]
[null,"Nazwa projektu:"]
[null,"Razem wydatki:"]
[null,"z tego: 2008 r."]
[null,"2009 r."]
[null,"2010 r."]
[null,"2011 r."]
["1.3","..............."]
[2,"Wydatki bieżące razem:","x"]
["2.1","Program:"]
[null,"Priorytet:"]
[null,"Działanie:"]
[null,"Nazwa projektu:"]
[null,"Razem wydatki:"]
[null,"z tego: 2008 r."]
[null,"2009 r."]
[null,"2010 r."]
[null,"2011 r."]
["2.2","..............."]
["Ogółem (1+2)",null,"x"]
[]
["* wydatki obejmują wydatki bieżące i majątkowe (dotyczące inwestycji rocznych i ujętych w wieloletnim programie inwestycyjnym)"]
["** środki własne jst, współfinansowanie z budżetu państwa oraz inne"]

{"sheet":"5","index":5,"n_rows":37,"n_cols":4,"rows_kept":37,"cut":false,"hidden":false,"merged":[[12,0,12,1],[22,0,22,1],[0,0,0,3],[3,0,5,0],[3,2,5,2],[3,1,5,1]]}
["Przychody i rozchody budżetu w 2013 r."]
[null,"c"]
[]
["Lp.","Treść","Klasyfikacja\n§","Plan "]
[]
[]
[1,2,3]
["1.","Dochody",null,15579911.300000001]
[null,"Dochody bieżące",null,15145084.300000001]
["2.","Wydatki",null,16256319.84]
[null,"Wydatki bieżące",null,15283507.74]
["3.","Wynik budżetu",null,-676408.54]
["Przychody ogółem:",null,null,1880948.54]
["1.","Kredyty","§ 952",1022090.61]
[]
["2.","Pożyczki","§ 952"]
["3.","Pożyczki na finansowanie zadań realizowanych\nz udziałem środków pochodzących z budżetu UE","§ 903"]
["4.","Przychody ze spłat pożyczek udzielonych na finan sowanie zadan realizowanych z udzialem środków pochodzących z budżetu UE","§ 902"]
["5.","Przychody ze spłat pożyczek udzielonych na ","§ 944"]
["6.","Nadwyżka budżetu z lat ubiegłych","§ 957",858857.93]
["7.","Papiery wartościowe (obligacje)","§ 931"]
["8."," Wolne środki,o których mowa w art.217ust 2 pkt 6 ufp","§ 950"]
["Rozchody ogółem:",null,null,1204540]
["1.","Spłaty kredytów","§ 992",443000]
[]
["2.","Spłaty pożyczek","§ 992",761540]
["3.","Spłaty pożyczek otrzymanych na finansowanie zadań realizowanych z udziałem środków pochodzących z budżetu UE","§ 963"]
["4.","Pożyczki udzielone na finansowanie zadań realizowanych z udziałem środków pochodzących z budżetu UE","§ 962"]
["5.","Przelewy z rachunków lokat","§ 994"]
["6.","Wykup papierów wartościowych (obligacji)","§ 982"]
["7.","Rozchody z tytułu innych rozliczeń","§ 995"]
[]
[]
[null,"Informacje dodatkowe:"]
[null,"1) przychody z tytuyłu kredytów krótkoterminowych: 1.000.000 zł,"]
[]
[null,"2) rozchody z tytułu kredytów krótkoterminowych:  1.000.000 zł."]

{"sheet":"6","index":6,"n_rows":39,"n_cols":10,"rows_kept":39,"cut":false,"hidden":false,"merged":[[3,9,4,9],[2,5,2,9],[0,0,0,9],[3,5,4,5],[3,6,3,8],[36,0,36,3],[2,3,4,3],[2,4,4,4],[2,0,4,0],[2,1,4,1],[2,2,4,2]]}
["Dochody i wydatki związane z realizacją zadań z zakresu administracji rządowej i innych zadań zleconych odrębnymi ustawami w 2008 r"]
[null,null,null,null,null,null,null,null,null,"w złotych"]
["Dział","Rozdział","§*","Dotacje\nogółem","Wydatki\nogółem\n(6+10)","z tego:"]
[null,null,null,null,null,"Wydatki\nbieżące","w tym:",null,null,"Wydatki\nmajątkowe"]
[null,null,null,null,null,null,"wynagrodzenia","pochodne od wynagrodzeń","świadczenia społeczne"]
[1,2,3,4,5,6,7,8,9,10]
[750,75011,2010,68611,68611,68611,68611]
[null,null,4010,null,68611,68611,68611]
[751,75101,2010,1037,1037,1037]
[null,null,4300,null,1037,1037]
[754,75414,2010,600,600,600]
[null,null,4210,600,600,600]
[852,null,null,1898500,1898500,1898500,41510,8965,1828000]
[null,85212,2010,1800000,1800000,1800000,28210,8965,1750000]
[null,null,3110,null,1750000,1750000,null,null,1750000]
[null,null,4010,null,26100,26100,26100]
[null,null,4040,null,2110,2110,2110]
[null,null,4110,null,8250,8250,null,8250]
[null,null,4120,null,715,715,null,715]
[null,null,4210,null,4125,4125]
[null,null,4280,null,120,120]
[null,null,4300,null,3000,3000]
[null,null,4360,null,100,100]
[null,null,4370,null,2000,2000]
[null,null,4410,null,400,400]
[null,null,4440,null,880,880]
[null,null,4700,null,400,400]
[null,null,4740,null,800,800]
[null,null,4750,null,1000,1000]
[null,85213,2010,7200,7200,7200]
[null,null,4130,null,7200,7200]
[null,85214,2010,78000,78000,78000,null,null,78000]
[null,null,3110,null,78000,78000,null,null,78000]
[null,85228,2010,13300,13300,13300,13300]
[null,null,4170,null,13300,13300,13300]
[]
["Ogółem",null,null,null,1968748,1968748,110121,8965,1828000]
[]
["(* kol. 3 do wykorzystania fakultatywnego)"]

{"sheet":"7","index":7,"n_rows":23,"n_cols":10,"rows_kept":23,"cut":false,"hidden":false,"merged":[[20,0,20,3],[0,0,0,9],[3,4,5,4],[3,5,3,9],[4,5,5,5],[4,6,4,8],[4,9,5,9],[3,0,5,0],[3,1,5,1],[3,2,5,2],[3,3,5,3]]}
["Dochody i wydatki związane z realizacją zadań z zakresu administracji rządowej wykonywanych na podstawie porozumień z organami administracji rządowej w 2008 r."]
[]
[null,null,null,null,null,null,null,null,null,"w złotych"]
["Dział","Rozdział","§*","Dotacje\nogółem","Wydatki\nogółem\n(6+10)","z tego:"]
[null,null,null,null,null,"Wydatki\nbieżące","w tym:",null,null,"Wydatki\nmajątkowe"]
[null,null,null,null,null,null,"wynagrodzenia","pochodne od wynagrodzeń","świadczenia społeczne"]
[1,2,3,4,5,6,7,8,9,10]
[]
[]
[]
[]
[]
[]
[]
[]
[]
[]
[]
[]
[]
["Ogółem"]
[]
["(* kol. 3 do wykorzystania fakultatywnego)"]

{"sheet":"8","index":8,"n_rows":23,"n_cols":10,"rows_kept":23,"cut":false,"hidden":false,"merged":[[20,0,20,3],[0,0,0,9],[3,0,5,0],[3,1,5,1],[3,2,5,2],[3,3,5,3],[3,4,5,4],[3,5,3,9],[4,5,5,5],[4,6,4,8],[4,9,5,9]]}
["Dochody i wydatki związane z realizacją zadań wykonywanych na podstawie porozumień (umów) między jednostkami samorządu terytorialnego w 2008 r."]
[]
[null,null,null,null,null,null,null,null,null,"w złotych"]
["Dział","Rozdział","§*","Dotacje\nogółem","Wydatki\nogółem\n(6+10)","z tego:"]
[null,null,null,null,null,"Wydatki\nbieżące","w tym:",null,null,"Wydatki\nmajątkowe"]
[null,null,null,null,null,null,"wynagrodzenia","pochodne od wynagrodzeń","dotacje"]
[1,2,3,4,5,6,7,8,9,10]
[600,null,null,15192,1965192,15192,null,null,null,1950000]
[null,60014]
[null,null,2320,15192,15192,15192]
[null,null,6300,0,null,null,null,null,null,1950000]
[]
[]
[]
[]
[]
[]
[]
[]
[]
["Ogółem",null,null,null,1965192,15192,null,null,null,1950000]
[]
["(* kol. 3 do wykorzystania fakultatywnego)"]

{"sheet":"9","index":9,"n_rows":33,"n_cols":11,"rows_kept":33,"cut":false,"hidden":false,"merged":[[4,10,7,10],[5,7,7,7],[5,8,7,8],[4,9,7,9],[27,0,27,1],[4,7,4,8],[0,0,0,9],[1,0,1,9],[4,0,7,0],[4,1,7,1],[4,2,7,2],[5,3,7,3],[4,3,4,6],[6,4,7,4],[5,4,5,6],[6,5,6,6]]}
["Plan przychodów i wydatków zakładów budżetowych, gospodarstw pomocniczych"]
[" oraz dochodów i wydatków rachunków dochodów własnych jednostek budżetowych na 2008 r."]
[]
[null,null,null,null,null,null,null,null,null,null,"w złotych"]
["Lp.","Wyszczególnienie","Stan środków obrotowych** na początek roku","Przychody*",null,null,null,"Wydatki",null,"Stan środków obrotowych** na koniec roku","Rozliczenia\nz budżetem\nz tytułu wpłat nadwyżek środków za 2007 r."]
[null,null,null,"ogółem","w tym:",null,null,"ogółem","w tym: wpłata do budżetu"]
[null,null,null,null,"dotacje\nz budżetu***","w tym:"]
[null,null,null,null,null,"§ 265","na inwestycje"]
[1,2,3,4,5,6,7,8,9,10,11]
["I.","Zakłady budżetowe",3000,804100,91000,91000,0,804100,0,3000,"x"]
[null,"z tego:"]
[null,"1.Wpływy z usług",null,713100,91000,null,null,null,null,null,"x"]
[null,"2.Wynagrodzenia ",null,null,null,null,null,391100,null,null,"x"]
[null,"3.Pochodne od wynagrodzeń",null,null,null,null,null,70190,null,null,"x"]
[null,"4.Wydatki bieżące",null,null,null,null,null,342810,null,null,"x"]
["II.","Gospodarstwa pomocnicze",null,null,null,"x",null,null,null,null,"x"]
[null,"z tego:"]
[null,"1.",null,null,null,"x",null,null,null,null,"x"]
[null,"2.",null,null,null,"x",null,null,null,null,"x"]
[null,"3.",null,null,null,"x",null,null,null,null,"x"]
[null,"4.",null,null,null,"x",null,null,null,null,"x"]
["III.","Rachunki dochodów własnych jednostek budżetowych",20000,166000,null,"x","x",160000,"x",26000]
[null,"z tego:"]
[null,"1.Wpłaty za żywienie dzieci",null,162000,null,"x","x",null,"x"]
[null,"2.Wpłaty za  żywienie personelu",null,4000,null,"x","x",null,"x"]
[null,"3.Zakup produktów zywnościowych",null,null,null,"x","x",156000,"x"]
[null,"4.",null,null,null,"x","x",4000,"x"]
["Ogółem",null,23000,970100,91000,91000,0,964100,null,29000]
[]
["W odniesieniu do dochodów własnych jednostek budżetowych:"]
["*    dochody"]
["**   stan środków pieniężnych"]
["*** źródła dochodów wskazanych przez Radę"]

{"sheet":"10","index":10,"n_rows":15,"n_cols":7,"rows_kept":15,"cut":false,"hidden":false,"merged":[[12,0,12,4],[0,0,0,6],[3,6,5,6],[3,4,5,4],[3,5,5,5],[3,0,5,0],[3,1,5,1],[3,2,5,2],[3,3,5,3]]}
["Dotacje przedmiotowe w 2008 r."]
[]
[null,null,null,null,null,null,"w złotych"]
["Lp.","Dział","Rozdział","§**","Nazwa jednostki\n otrzymującej dotację","Zakres","Ogółem kwota dotacji"]
[]
[]
[1,2,3,4,5,6,7]
[1,900,90017,2650,"Zakład Gospodarki Komunalnej w Mordach"]
[null,null,null,null,null,"Dopłata do 1m³ ścieków z systemu kanalizacji: 42.000 m³ x1,50 zł; dowożone:2.000m³x0,30 zł",63600]
[null,null,null,null,null,"Dopłata do składowania odpadów na wysypisku: 1.200m³x21,50zł",25800]
[null,null,null,null,null,"Dopłata do wody dla odbiorców zasilanych  w wodę z Gminy Łosice:8.000m³x0,2 zł",1600]
[]
["Ogółem",null,null,null,null,null,91000]
[]
["(** kol. 4 do wykorzystania fakultatywnego)"]

{"sheet":"11","index":11,"n_rows":15,"n_cols":6,"rows_kept":15,"cut":false,"hidden":false,"merged":[[0,0,0,5],[9,0,9,4]]}
["Dotacje podmiotowe* w 2008 r."]
[]
[null,null,null,null,null,"w złotych"]
["Lp.","Dział","Rozdział","§**","Nazwa instytucji","Kwota dotacji"]
[1,2,3,4,5,6]
[1,921,92109,2480,"Miejsko-Gminny Ośrodek Kultury w Mordach",135805]
[1,921,92116,2480,"Miejsko-Gminna Biblioteka Publiczna w Mordach",115600]
[]
[]
["Ogółem",null,null,null,null,251405]
[]
["* mogą dotyczyć przedszkoli samorządowych (art. 80 ust 4 i art. 90 ust. 4 ustawy o systemie oświaty "]
["  w związku z art. 106 ust. 2 pkt 2 i art. 184 ust. 1 pkt 14 ustawy o finansach publicznych)"]
[]
["(** kol. 4 do wykorzystania fakultatywnego)"]

{"sheet":"12","index":12,"n_rows":12,"n_cols":6,"rows_kept":12,"cut":false,"hidden":false,"merged":[[0,0,0,5],[9,0,9,4]]}
["Dotacje celowe na zadania własne gminy realizowane przez podmioty należące\ni nienależące do sektora finansów publicznych w 2008 r."]
[]
[null,null,null,null,null,"w złotych"]
["Lp.","Dział","Rozdział","§*","Nazwa zadania","Kwota dotacji"]
[1,2,3,4,5,6]
[]
[]
[]
[]
["Ogółem"]
[]
["(* kol. 4 do wykorzystania fakultatywnego)"]

{"sheet":"13","index":13,"n_rows":18,"n_cols":3,"rows_kept":18,"cut":false,"hidden":false,"merged":[[0,0,0,2],[1,0,1,2]]}
["Plan przychodów i wydatków Gminnego Funduszu"]
["Ochrony Środowiska i Gospodarki Wodnej"]
[]
[null,null,"w złotych"]
["Lp.","Wyszczególnienie","Plan na 2008 r."]
["I.","Stan środków obrotowych na początek roku",18032]
["II.","Przychody",10000]
["1.","900-90011§ 069- wpływy z różnych opłat",10000]
["2."]
["3."]
["III.","Wydatki",25000]
["1.","Wydatki bieżące"]
[null,"900-90011 § 4300 - zakup usług pozostałych",25000]
[]
["2.","Wydatki majątkowe",0]
[]
[]
["IV.","Stan środków obrotowych na koniec roku",3032]

{"sheet":"14","index":14,"n_rows":20,"n_cols":3,"rows_kept":20,"cut":false,"hidden":false,"merged":[[0,0,0,2],[1,0,1,2],[19,0,19,2]]}
["Plan przychodów i wydatków Gminnego* Funduszu"]
["Gospodarki Zasobem Geodezyjnym i Kartograficznym"]
[]
[null,null,"w złotych"]
["Lp.","Wyszczególnienie","Plan na 2008 r."]
["I.","Stan środków obrotowych na początek roku"]
["II.","Przychody"]
["1."]
["2."]
["3."]
["III.","Wydatki"]
["1.","Wydatki bieżące"]
[]
[]
["2.","Wydatki majątkowe"]
[]
[]
["IV.","Stan środków obrotowych na koniec roku"]
[]
["(* w przypadku przejęcia zadania na podstawie porozumienia z powiatem)"]

{"sheet":"15","index":15,"n_rows":13,"n_cols":6,"rows_kept":13,"cut":false,"hidden":false,"merged":[[0,0,0,5],[10,0,10,4]]}
["Wydatki jednostek pomocniczych w 2008 r."]
[]
[null,null,null,null,null,"w złotych"]
["Lp.","Dział","Rozdział","§*","Nazwa jednostki pomocniczej","Kwota"]
[1,2,3,4,5,6]
[]
[]
[]
[]
[]
["Ogółem"]
[]
["(* kol. 4 do wykorzystania fakultatywnego)"]

{"sheet":"16","index":16,"n_rows":11,"n_cols":7,"rows_kept":11,"cut":false,"hidden":false,"merged":[[6,3,8,3],[3,4,5,4],[6,4,8,4],[0,0,0,5],[3,1,5,1],[6,1,8,1],[3,0,5,0],[6,0,8,0],[3,2,5,2],[3,3,5,3],[6,2,8,2]]}
["Wykaz obowiązujących umów o partnerstwie publiczno-prywatnym"]
["Lp.","Przedmiot i cel umowy","Strony umowy","Okres wykonywania umowy","Łączna kwota wydatków, \nw tym wydatki budżetu","Łączne kwoty wydatków \nw poszczególnych latach, \nw tym kwota wydatków budżetu"]
[1,2,3,4,5,6]
["1.","Modernizacja drogi  X…","Urząd Gminy X-Firma Y","2008-2010","      4.500.000 zł,       \nw tym wydatki budżetu\n3.000.000 zł","2008 - 1.500.000 zł, \nw tym wydatki budżetu \n1.000.000 zł"]
[null,null,null,null,null,"2009 - 1.500.000 zł, \nw tym wydatki budżetu \n1.000.000 zł"]
[null,null,null,null,null,"2010 - 1.500.000 zł, \nw tym wydatki budżetu \n1.000.000 zł"," "]
["2.","Modernizacja ulicy Y","Urząd Gminy X-Firma X","2008-2010","      4.500.000 zł,       \nw tym wydatki budżetu\n3.000.000 zł","2008 - 1.500.000 zł, \nw tym wydatki budżetu \n1.000.000 zł"]
[null,null,null,null,null,"2009 - 1.500.000 zł, \nw tym wydatki budżetu \n1.000.000 zł"]
[null,null,null,null,null,"2010 - 1.500.000 zł, \nw tym wydatki budżetu \n1.000.000 zł"]
["3."]
["4."]

{"sheet":"17","index":17,"n_rows":34,"n_cols":9,"rows_kept":34,"cut":false,"hidden":false,"merged":[[0,0,0,8],[3,0,4,0],[3,1,4,1],[3,2,4,2],[3,3,3,8]]}
["Prognoza kwoty długu i spłat na rok 2008 i lata następne"]
[]
[null,null,null,null,null,null,null,null,"w złotych"]
["Lp.","Wyszczególnienie","Kwota długu na dzień 31.12.2007","Prognoza"]
[null,null,null,"Umorzenie",2008,2009,2010,2011,2012]
[1,2,3,4,5,6,7,8,9]
["1.","Zobowiązania wg tytułów dłużnych: (1.1+1.2+1.3)-2.1",3967720,null,6354720,4840570,3204486,1489868,0]
["1.1","Zaciągnięte zobowiązania (bez prefinansowania) z tytułu:",3967720,null,6354720,4840570,3204486,1489868,0]
["a","pożyczek",2621534,null,3064852,2380702,1374618,390000,0]
["b","kredytów",1346186,null,3289868,2459868,1829868,1099868,0]
["c","obligacji",0,0,0,0,0,0,0]
["1.2","Planowane w roku budżetowym (bez prefinansowania):",0,null,3605682,0,0,0,0]
["a","pożyczki",0,null,1500000,0,0,0,0]
["b","kredyty,  w tym:",0,null,2105682,0,0,0,0]
[null,"   EBOiR",0,null,0,0,0,0,0]
["c","obligacje",0,null,0,0,0,0,0]
["1.3","Pożyczki, kredyty i obligacje na prefinansowanie",0,null,0,0,0,0,0]
["a","Zaciągnięte zobowiązania  ",0,null,0,0,0,0,0]
["b","Planowane zobowiązania",0,null,0,0,0,0,0]
[2,"Obsługa długu (2.1+2.2+2.3)",0,null,1468682,1794150,1836084,1861618,1544868]
["2.1","Spłata rat kapitałowych z wyłączeniem prefinansowania",0,null,1218682,1514150,1636084,1714618,1489868]
["a","kredytów i pożyczek ",0,null,1218682,1514150,1636084,1714618,1489868]
["b","wykup papierów wartościowych",0,null,0,0,0,0,0]
["c","udzielonych poręczeń",0,null,0,0,0,0,0]
["2.2","Spłata rat kapitałowych z tytułu prefinansowania",0,null,0,0,0,0,0]
["2.3","Spłata odsetek i dyskonta",0,null,250000,280000,200000,147000,55000]
["3.","Prognozowane dochody budżetowe",0,null,11782000,12135460,12499500,12874500,13261000]
["4.","Prognozowane wydatki budżetowe",0,null,14169000,12135460,12499500,12874500,13261000]
["5.","Prognozowany wynik finansowy",0,null,2387000]
["6.","Relacje do dochodów (w %): "]
["6.1","długu (art. 170 ust. 1)        ( 1-2.a-2.b-2.2):3",0,null,53.94,39.89,25.64,11.57,0]
["6.2","długu po uwzględnieniu wyłączeń (art. 170 ust. 3)\n(1.1+1.2-2.1.a-2.1.b):3",0,null,53.94,39.89,25.64,11.57,0]
["6.3","spłaty zadłużenia (art. 169 ust. 1)        (2:3)",0,null,12.47,14.78,14.69,14.46,11.65]
["6.4","spłaty zadłużenia po uwzględnieniu wyłączeń (art. 169 ust. 3)      (2.1+2.3):3",0,null,12.47,14.78,14.69,14.46,11.65]